bitfinex-derivatives/quotes_BTCF0:USTF0_20251217
["timestamp","ask_amount","ask_price","bid_price","bid_amount"]
[1765992283595,0.011491,87053.0,87044.0,0.3608]
[1765992283800,0.0114904,87057.0,87044.0,0.3608]
[1765992284001,0.3608,87058.0,87044.0,0.3608]
[1765992284002,0.3608,87058.0,87044.0,0.3618]
[1765992284391,0.005,87062.0,87044.0,0.3618]
[1765992284591,0.3608,87059.0,87045.0,0.0114918]
[1765992284794,0.3608,87059.0,87048.0,0.0114914]
[1765992284995,0.3608,87059.0,87045.0,0.0114919]
[1765992285401,0.3608,87059.0,87049.0,0.0114914]
[1765992285589,0.3608,87059.0,87045.0,0.0114919]
[1765992286006,0.3608,87059.0,87044.0,0.3608]
[1765992286204,0.3608,87059.0,87058.0,0.00229733]
[1765992286898,0.72496,87071.0,87058.0,0.36309733]
[1765992287099,0.3608,87075.0,87062.0,0.0114896]
[1765992287400,0.3608,87075.0,87058.0,0.36309733]
[1765992287401,0.3608,87075.0,87066.0,0.0114892]
[1765992287706,0.3498874,87080.0,87065.0,0.3608]
[1765992288001,0.0114881,87075.0,87066.0,0.3608]
[1765992288306,0.3384,87080.0,87066.0,0.3608]
[1765992288504,0.3384,87080.0,87067.0,0.011489]
[1765992288700,0.3384,87080.0,87073.0,0.3608]
[1765992289105,0.3608,87084.0,87073.0,0.3608]
[1765992289293,0.0114861,87090.0,87074.0,0.0114881]
[1765992289500,0.0114864,87088.0,87074.0,0.0114881]
[1765992289702,0.01165821,87091.0,87080.0,0.3608]
[1765992290004,0.00017231,87091.0,87080.0,0.3608]
[1765992290209,0.72496,87097.0,87087.0,0.0114863]
[1765992290421,0.72496,87097.0,87087.0,0.3722864]
[1765992290804,0.72496,87097.0,87088.0,0.0114862]
[1765992291501,0.72496,87097.0,87087.0,0.3722864]
[1765992291796,0.72496,87097.0,87087.0,0.3608]
[1765992292399,0.00017231,87101.0,87087.0,0.3608]
[1765992292615,0.22506746,87100.0,87088.0,0.0114863]
[1765992292997,0.00017231,87101.0,87094.0,0.0114854]
[1765992293202,0.00017231,87101.0,87091.0,0.0114858]
[1765992294103,0.00017231,87101.0,87088.0,0.0114862]
[1765992294308,0.00017231,87101.0,87087.0,0.3608]
[1765992294508,0.72492,87111.0,87100.0,0.3608]
[1765992294809,0.22506746,87130.0,87114.0,0.0114827]
[1765992295016,0.72488,87132.0,87127.0,0.3608]
[1765992295611,0.3608,87131.0,87121.0,0.0001722]
[1765992296113,0.72488,87132.0,87121.0,0.0001722]
[1765992296311,0.0114799,87137.0,87121.0,0.0001722]
[1765992296608,0.0114802,87135.0,87121.0,0.0001722]
[1765992296814,0.3608,87132.0,87121.0,0.0001722]
[1765992297316,0.3628,87132.0,87121.0,0.0001722]
[1765992297704,0.3742805,87132.0,87121.0,0.0001722]
[1765992298013,0.3628,87132.0,87121.0,2.2e-06]
[1765992298510,0.3628,87132.0,87126.0,0.3608]
[1765992298511,0.002,87132.0,87126.0,0.3608]
[1765992299011,0.3628,87132.0,87121.0,2.2e-06]
[1765992299214,0.3618,87132.0,87121.0,2.2e-06]
[1765992300018,0.00246742,87138.0,87129.0,0.3608]
[1765992300311,0.00246742,87138.0,87130.0,0.0114807]
[1765992300513,0.3608,87153.0,87136.0,0.3608]
[1765992300705,0.0114774,87156.0,87143.0,0.3608]
[1765992300908,0.3608,87149.0,87136.0,0.3608]
[1765992301111,0.3608,87138.0,87121.0,2.2e-06]
[1765992301317,0.002,87132.0,87121.0,2.2e-06]
[1765992301813,0.0001722,87135.0,87122.0,0.3722817]
[1765992302113,0.1941322,87138.0,87127.0,0.011481]
[1765992302303,0.005,87145.0,87133.0,0.3608]
[1765992302712,0.0164788,87145.0,87133.0,0.3608]
[1765992303010,0.0164788,87145.0,87122.0,0.3608]
[1765992303011,0.3608,87135.0,87122.0,0.3608]
[1765992303318,0.0114804,87133.0,87121.0,2.2e-06]
[1765992303813,0.3608,87135.0,87124.0,0.0114814]
[1765992304006,0.3608,87135.0,87121.0,2.2e-06]
[1765992304207,0.3608,87135.0,87122.0,0.0114818]
[1765992304517,0.19659,87135.0,87124.0,0.3608]
[1765992304723,0.19659,87135.0,87127.0,0.0114811]
[1765992304915,0.19659,87135.0,87124.0,0.3722815]
[1765992305116,0.19659,87135.0,87124.0,0.3608]
[1765992306308,0.19659,87135.0,87124.0,0.3722815]
[1765992306504,0.0114802,87134.0,87124.0,0.3608]
[1765992306719,0.011652,87137.0,87124.0,0.3608]
[1765992307222,0.0114806,87131.0,87124.0,0.3608]
[1765992307415,0.3608,87126.0,87104.0,0.3608]
[1765992307616,0.3608,87126.0,87082.0,0.016487]
[1765992307617,0.3608,87113.0,87094.0,0.4827]
[1765992307810,0.0114844,87102.0,87094.0,0.3608]
[1765992308011,0.0114844,87102.0,87083.0,0.79828]
[1765992308012,0.0114844,87102.0,87086.0,0.0114865]
[1765992308318,0.0114861,87090.0,87085.0,0.0001722]
[1765992308520,0.3608,87086.0,87085.0,0.0001722]
[1765992308706,0.0114854,87095.0,87085.0,0.0001722]
[1765992308909,0.3608,87099.0,87085.0,0.0001722]
[1765992308910,0.011485,87098.0,87085.0,0.0001722]
[1765992309116,0.3722849,87099.0,87085.0,0.0001722]
[1765992309315,0.3722849,87099.0,87086.0,0.001]
[1765992309712,0.3608,87092.0,87086.0,0.001]
[1765992309912,0.0114852,87097.0,87086.0,0.001]
[1765992310113,0.3608,87092.0,87085.0,2.2e-06]
[1765992310316,0.0114868,87085.0,87065.0,0.0114892]
[1765992310512,0.3608,87077.0,87065.0,0.0114892]
[1765992310708,0.3608,87077.0,87067.0,0.23655646]
[1765992310909,0.3608,87077.0,87067.0,0.22506746]
[1765992311110,0.0114879,87076.0,87058.0,0.36309733]
[1765992311310,0.3608,87069.0,87058.0,0.36326953]
[1765992312215,0.0001722,87076.0,87066.0,0.3722891]
[1765992312519,0.0114862,87089.0,87075.0,0.3608]
[1765992312716,0.3608,87093.0,87075.0,0.3608]
[1765992312928,0.22506746,87090.0,87075.0,0.3608]
[1765992313115,0.3608,87082.0,87066.0,0.372289]
[1765992313318,0.3608,87082.0,87068.0,0.0114888]
[1765992313517,0.22506746,87090.0,87081.0,0.3608]
[1765992313709,0.0114857,87092.0,87081.0,0.3608]
[1765992313910,0.3608,87093.0,87081.0,0.3608]
[1765992314223,0.3608,87093.0,87081.0,0.02746]
[1765992314425,0.3608,87093.0,87075.0,0.3608]
[1765992314611,0.3609722,87093.0,87075.0,0.3608]
[1765992314816,0.002,87092.0,87076.0,0.0114878]
[1765992315017,0.0114859,87091.0,87075.0,0.3608]
[1765992315219,0.002,87092.0,87075.0,0.3608]
[1765992315522,0.3629722,87093.0,87077.0,0.0114876]
[1765992315712,0.3629722,87093.0,87079.0,0.0114873]
[1765992315912,0.3609722,87093.0,87076.0,0.0114878]
[1765992316121,0.001,87092.0,87076.0,0.0114878]
[1765992316521,0.001,87092.0,87079.0,0.0114873]
[1765992316717,0.001,87092.0,87075.0,0.3608]
[1765992316917,0.0114873,87081.0,87065.0,0.3609722]
[1765992317221,0.0114871,87082.0,87065.0,0.3724614]
[1765992317521,0.0114871,87082.0,87065.0,0.3609722]
[1765992317726,0.0114871,87082.0,87065.0,0.3724615]
[1765992318113,0.3608,87083.0,87066.0,0.0114891]
[1765992318725,0.0114871,87082.0,87066.0,0.0114891]
[1765992318908,0.3608,87083.0,87065.0,0.3609722]
[1765992319114,0.3608,87083.0,87066.0,0.0114891]
[1765992320019,0.372287,87083.0,87065.0,0.3609722]
[1765992320214,0.372287,87083.0,87066.0,0.0114891]
[1765992320427,0.372287,87083.0,87066.0,0.0124891]
[1765992320721,0.3608,87083.0,87069.0,0.0114886]
[1765992321115,0.3608,87083.0,87065.0,0.3609722]
[1765992321116,0.3608,87083.0,87071.0,0.0114885]
[1765992321322,0.3608,87083.0,87065.0,0.3609722]
[1765992321826,0.3608,87083.0,87076.0,0.0114878]
[1765992322027,0.3608,87083.0,87073.0,0.0114882]
[1765992322328,0.3618,87083.0,87069.0,0.0114887]
[1765992322516,0.19513,87083.0,87065.0,0.3609722]
[1765992322717,0.3609722,87093.0,87082.0,0.3608]
[1765992323023,0.3724579,87093.0,87082.0,0.3608]
[1765992323322,0.0114872,87081.0,87068.0,0.3608]
[1765992323524,0.3608,87083.0,87068.0,0.3608]
[1765992324023,0.3608,87083.0,87058.0,0.36309733]
[1765992324024,0.0114887,87070.0,87058.0,0.36309733]
[1765992324223,0.3608,87073.0,87058.0,0.36309733]
[1765992324419,0.0114871,87082.0,87068.0,0.3618]
[1765992324619,0.3608,87092.0,87078.0,0.3722875]
[1765992324821,0.0114862,87089.0,87078.0,0.3608]
[1765992325025,0.3609722,87092.0,87081.0,0.0114871]
[1765992325227,0.0001722,87092.0,87083.0,0.0114869]
[1765992325617,0.0001722,87092.0,87079.0,0.0114874]
[1765992325818,0.0001722,87092.0,87083.0,0.0114869]
[1765992326013,0.0001722,87092.0,87078.0,0.3608]
[1765992326226,0.011658,87092.0,87079.0,0.0114874]
[1765992326422,0.0001722,87092.0,87079.0,0.0114874]
[1765992326922,2.2e-06,87092.0,87089.0,0.3608]
[1765992327120,0.3608,87100.0,87089.0,0.3608]
[1765992327612,0.3608,87100.0,87080.0,0.32235155]
[1765992327825,0.3608,87100.0,87088.0,0.0114862]
[1765992328223,0.3608,87100.0,87089.0,0.011486]
[1765992328825,0.3608,87124.0,87098.0,0.3608]
[1765992329030,0.3608,87124.0,87107.0,0.3608]
[1765992329221,0.0114828,87115.0,87107.0,0.3608]
[1765992329731,0.0114827,87116.0,87107.0,0.3608]
[1765992329927,0.3608,87124.0,87107.0,0.3608]
[1765992329928,0.01159072,87120.0,87107.0,0.3608]
[1765992330133,0.0114824,87118.0,87107.0,0.3608]
[1765992330425,0.00010862,87120.0,87107.0,0.3608]
[1765992330624,0.00010862,87120.0,87107.0,0.3618]
[1765992331131,0.00010862,87120.0,87107.0,0.3732837]
[1765992331319,0.00010862,87120.0,87107.0,0.3618]
[1765992331519,0.0114825,87117.0,87107.0,0.3618]
[1765992331713,0.01159072,87120.0,87107.0,0.3618]
[1765992332125,0.00010862,87120.0,87114.0,0.3608]
[1765992332322,0.3608,87124.0,87117.0,0.0114824]
[1765992332520,0.3608,87132.0,87114.0,0.3608]
[1765992332820,0.01148,87136.0,87123.0,0.3608]
[1765992333024,0.3608,87141.0,87123.0,0.3608]
[1765992333226,0.0114803,87134.0,87123.0,0.3608]
[1765992333426,0.3608,87141.0,87123.0,0.3608]
[1765992333922,0.3608,87141.0,87123.0,0.3618]
[1765992334130,0.0114801,87135.0,87123.0,0.3618]
[1765992334625,0.00329522,87138.0,87124.0,0.0114815]
[1765992334818,0.00329522,87138.0,87123.0,0.3608]
[1765992335223,0.00329522,87138.0,87131.0,0.3608]
[1765992336130,0.00329522,87138.0,87120.0,0.0001722]
[1765992336131,0.3722805,87132.0,87120.0,0.0001722]
[1765992336923,0.00229522,87138.0,87129.0,0.3608]
[1765992337132,0.00229522,87138.0,87129.0,0.3722808]
[1765992337429,0.00229522,87138.0,87131.0,0.0114805]
[1765992338017,2e-08,87138.0,87137.0,0.3722798]
[1765992338323,0.005,87145.0,87137.0,0.3608]
[1765992338729,0.0114791,87143.0,87137.0,0.3608]
[1765992339116,0.0114791,87143.0,87126.0,0.0114812]
[1765992339317,0.3608,87144.0,87126.0,0.0114812]
[1765992339522,0.3608,87137.0,87125.0,0.0114813]
[1765992339717,0.3608,87137.0,87121.0,0.0114818]
[1765992340025,0.3722799,87137.0,87120.0,0.3724542]
[1765992340231,0.0114802,87134.0,87120.0,0.3609722]
[1765992340433,0.3722799,87137.0,87120.0,0.3609722]
[1765992340830,0.0114804,87133.0,87120.0,0.3609722]
[1765992341333,0.3608,87144.0,87134.0,0.0114801]
[1765992341628,0.3608,87144.0,87129.0,0.3608]
[1765992341629,0.3608,87144.0,87133.0,0.0114803]
[1765992342133,0.3608,87144.0,87136.0,0.3608]
[1765992343722,0.0114798,87137.0,87120.0,0.69103735]
[1765992343925,0.3608,87136.0,87122.0,0.0114818]
[1765992344129,0.3608,87136.0,87126.0,0.0114812]
[1765992344731,0.3608,87136.0,87123.0,0.0114815]
[1765992344929,0.3608,87136.0,87125.0,0.0114813]
[1765992345331,0.0114805,87132.0,87120.0,0.3609722]
[1765992345529,0.0114801,87135.0,87120.0,0.3609722]
[1765992345930,0.0114801,87135.0,87122.0,0.0114818]
[1765992346236,0.3608,87136.0,87122.0,0.0114818]
[1765992346435,0.3608,87136.0,87120.0,0.3609722]
[1765992346731,0.3608,87136.0,87127.0,0.011481]
[1765992346936,0.3608,87136.0,87124.0,0.0114814]
[1765992347339,0.3608,87136.0,87120.0,0.3609722]
[1765992347735,0.3608,87136.0,87120.0,0.69103735]
[1765992347934,0.3608,87136.0,87127.0,0.001]
[1765992348136,0.3608,87136.0,87120.0,0.3609722]
[1765992348343,0.69086515,87140.0,87124.0,0.3608]
[1765992348531,0.3608,87140.0,87124.0,0.3608]
[1765992348734,0.3608,87130.0,87120.0,0.0001722]
[1765992348935,0.3608,87122.0,87120.0,2.2e-06]
[1765992349236,0.3722818,87122.0,87120.0,2.2e-06]
[1765992349740,0.3608,87122.0,87103.0,0.3608]
[1765992350043,0.3608,87112.0,87103.0,0.3608]
[1765992350840,0.3608,87112.0,87099.0,0.0001722]
[1765992350841,0.011484,87105.0,87099.0,0.0001722]
[1765992351034,0.3608,87112.0,87099.0,0.0001722]
[1765992351337,0.3608,87112.0,87098.0,0.36309628]
[1765992351543,0.3608,87103.0,87084.0,0.3608]
[1765992351942,0.3608,87103.0,87092.0,0.0114857]
[1765992352339,0.3608,87112.0,87100.0,0.3608]
[1765992352541,0.0114836,87109.0,87100.0,0.3608]
[1765992352741,0.0114833,87111.0,87100.0,0.3608]
[1765992352941,0.3618,87112.0,87100.0,0.3608]
[1765992353343,0.3608,87112.0,87100.0,0.3608]
[1765992353850,0.0001722,87116.0,87101.0,0.0114845]
[1765992354043,0.001,87112.0,87100.0,0.3608]
[1765992354240,2.2e-06,87116.0,87109.0,0.3722834]
[1765992354446,2.2e-06,87116.0,87109.0,0.3608]
[1765992354641,0.1941322,87123.0,87112.0,0.011483]
[1765992354840,0.0114809,87129.0,87122.0,0.3608]
[1765992355754,0.0114804,87133.0,87122.0,0.3608]
[1765992355946,0.2320122,87134.0,87117.0,0.0001722]
[1765992356247,0.3608,87129.0,87117.0,0.0001722]
[1765992357647,0.3722809,87129.0,87117.0,0.0001722]
[1765992358050,0.3608,87129.0,87117.0,0.0001722]
[1765992358442,0.0114826,87117.0,87109.0,0.3608]
[1765992358751,0.2434925,87134.0,87090.0,0.03049374]
[1765992358752,0.0001722,87134.0,87121.0,0.0114819]
[1765992359054,0.3608,87131.0,87120.0,0.33006515]
[1765992359450,0.3608,87131.0,87119.0,0.0114821]
[1765992359850,0.3608,87131.0,87117.0,0.0001722]
[1765992360241,0.3608,87131.0,87116.0,0.3608]
[1765992360945,0.3608,87117.0,87107.0,0.3608]
[1765992361147,0.3722825,87117.0,87092.0,0.3608]
[1765992361340,0.0001722,87113.0,87099.0,0.0114847]
[1765992361545,0.0001722,87113.0,87100.0,0.33006515]
[1765992361745,2.2e-06,87113.0,87100.0,0.33006515]
[1765992362047,2.2e-06,87113.0,87092.0,0.3608]
[1765992362048,0.0114846,87101.0,87092.0,0.3608]
[1765992362249,0.3608,87107.0,87096.0,0.0114851]
[1765992362448,0.0114816,87124.0,87107.0,0.0114836]
[1765992362654,0.3608,87127.0,87114.0,0.3608]
[1765992362854,0.3722811,87127.0,87114.0,0.3608]
[1765992363056,0.97708,87140.0,87122.0,0.3608]
[1765992363259,0.0114805,87132.0,87122.0,0.3608]
[1765992363459,0.3608,87140.0,87122.0,0.3608]
[1765992363753,0.0114814,87125.0,87114.0,0.3608]
[1765992364053,0.0114814,87125.0,87089.0,0.03044776]
[1765992364054,0.0114825,87117.0,87095.0,0.3608]
[1765992364260,0.3608,87110.0,87100.0,0.33006515]
[1765992364556,0.3608,87110.0,87098.0,0.5291249]
[1765992364956,0.3608,87110.0,87102.0,0.0114843]
[1765992365155,0.3608,87110.0,87098.0,0.51764]
[1765992365557,0.3608,87110.0,87095.0,0.3609722]
[1765992365558,0.3722846,87101.0,87095.0,0.0001722]
[1765992365748,0.3608,87096.0,87095.0,0.0001722]
[1765992369249,0.3608,87096.0,87058.0,0.01378753]
[1765992369250,0.3608,87096.0,87059.0,0.3608]
[1765992369463,0.3608,87083.0,87082.0,1e-07]
[1765992369757,0.0114849,87099.0,87058.0,0.00229733]
[1765992369758,0.0114874,87080.0,87058.0,0.00229733]
[1765992369951,0.33006515,87092.0,87059.0,0.01149]
[1765992369952,0.0114879,87076.0,87059.0,0.01149]
[1765992370149,0.0001722,87076.0,87059.0,0.0001722]
[1765992370352,0.011488,87075.0,87059.0,0.0001722]
[1765992370752,0.0114847,87101.0,87078.0,0.0114875]
[1765992370954,0.0774,87113.0,87075.0,0.33006515]
[1765992371153,0.0114849,87099.0,87081.0,0.0114872]
[1765992371657,0.0114849,87099.0,87080.0,0.33006515]
[1765992371857,0.0001722,87098.0,87081.0,0.0001722]
[1765992372047,0.0114852,87097.0,87081.0,0.0001722]
[1765992372255,0.0001722,87098.0,87081.0,0.0116593]
[1765992372757,0.0001722,87098.0,87083.0,0.0114868]
[1765992372971,0.3608,87093.0,87081.0,0.0001722]
[1765992373360,0.3608,87093.0,87081.0,0.0011722]
[1765992374064,0.3608,87093.0,87081.0,0.0001722]
[1765992375261,0.3608,87093.0,87084.0,0.0114867]
[1765992375463,0.3608,87093.0,87081.0,0.0116594]
[1765992375963,0.3608,87093.0,87081.0,0.0001722]
[1765992376466,0.0001722,87098.0,87092.0,0.3608]
[1765992376964,0.3608,87095.0,87083.0,0.0114868]
[1765992377367,0.3608,87095.0,87081.0,0.0001722]
[1765992377568,0.0001722,87098.0,87092.0,0.3608]
[1765992377861,0.0001722,87098.0,87093.0,0.0114856]
[1765992378368,0.0001722,87098.0,87092.0,0.3608]
[1765992378662,0.005,87104.0,87092.0,0.3608]
[1765992378866,0.005,87104.0,87097.0,0.011485]
[1765992379067,0.005,87104.0,87094.0,0.0114854]
[1765992379452,0.005,87104.0,87092.0,0.3608]
[1765992380269,0.005,87104.0,87093.0,0.0114856]
[1765992380474,0.005,87104.0,87099.0,0.3608]
[1765992380675,0.0001722,87107.0,87101.0,0.0114845]
[1765992380874,0.3722824,87118.0,87106.0,0.3608]
[1765992381069,0.3608,87118.0,87106.0,0.3608]
[1765992381271,0.011482,87121.0,87106.0,0.3722838]
[1765992381464,0.0114823,87119.0,87106.0,0.3608]
[1765992381773,0.0114825,87117.0,87106.0,0.3608]
[1765992381963,0.0114823,87119.0,87106.0,0.3608]
[1765992382375,0.0114827,87116.0,87106.0,0.3608]
[1765992384274,0.0114829,87114.0,87106.0,0.3608]
[1765992384672,0.0001722,87121.0,87106.0,0.3608]
[1765992384872,0.0001722,87121.0,87113.0,0.3608]
[1765992385178,0.0116541,87121.0,87113.0,0.3608]
[1765992385766,0.0116541,87121.0,87106.0,0.3608]
[1765992385767,0.3608,87118.0,87104.0,0.0001722]
[1765992385966,0.3608,87108.0,87104.0,0.0001722]
[1765992386173,0.3608,87118.0,87104.0,0.0001722]
[1765992386871,0.3722832,87111.0,87104.0,0.0001722]
[1765992387073,0.0114835,87109.0,87104.0,2.2e-06]
[1765992387577,0.3608,87111.0,87104.0,2.2e-06]
[1765992388272,0.3608,87118.0,87107.0,0.0114837]
[1765992388473,0.3608,87118.0,87106.0,0.0114838]
[1765992389070,0.3722823,87118.0,87104.0,0.3608022]
[1765992389265,0.3608,87118.0,87104.0,0.3608022]
[1765992389676,0.3608,87108.0,87095.0,0.3722852]
[1765992390466,0.0114838,87107.0,87095.0,0.3608]
[1765992390672,0.3608,87108.0,87095.0,0.3608]
[1765992390873,0.011484,87106.0,87095.0,0.3608]
[1765992391081,0.3608,87100.0,87092.0,0.0001722]
[1765992391585,0.3608,87093.0,87078.0,0.72412]
[1765992391881,0.3608,87093.0,87076.0,0.3608]
[1765992392178,0.3722856,87093.0,87077.0,0.0114876]
[1765992392381,0.3608,87086.0,87076.0,0.3608]
[1765992394179,0.3608,87077.0,87060.0,0.22488041]
[1765992394375,0.3608,87069.0,87057.0,0.3608]
[1765992394874,0.3608,87069.0,87059.0,0.22488041]
[1765992395490,0.0114889,87068.0,87057.0,0.3608]
[1765992395678,0.3608,87069.0,87057.0,0.3608]
[1765992395882,0.0114894,87065.0,87057.0,0.3608]
[1765992396190,0.3608,87060.0,87058.0,3e-08]
[1765992396681,0.0114905,87056.0,87055.0,3e-08]
[1765992396884,0.0114905,87056.0,87001.0,0.115]
[1765992396885,0.005,87062.0,87018.0,0.00229839]
[1765992397075,0.22488041,87040.0,87018.0,0.00229839]
[1765992397272,0.22488041,87030.0,87018.0,0.00229839]
[1765992397486,0.0114936,87033.0,87019.0,0.06167]
[1765992397891,9.608e-05,87032.0,87019.0,0.06167]
[1765992398287,0.22488041,87030.0,87019.0,0.06167]
[1765992398585,9.608e-05,87032.0,87019.0,0.06167]
[1765992398886,0.0114942,87028.0,87019.0,0.06167]
[1765992399188,0.3608,87020.0,87019.0,0.06167]
[1765992399887,0.3608,87020.0,87018.0,9e-08]
[1765992400079,9.29e-05,87019.0,86968.0,0.03044776]
[1765992400280,0.3608929,87019.0,87004.0,0.3608]
[1765992400483,0.00017231,87035.0,87015.0,0.3608]
[1765992400785,1e-08,87035.0,87033.0,0.0114934]
[1765992401177,1e-08,87035.0,87034.0,0.3608]
[1765992401485,5.877e-05,87035.0,87034.0,0.3722934]
[1765992401687,0.23636911,87070.0,87049.0,0.0114913]
[1765992401887,0.0114895,87064.0,87055.0,0.3608]
[1765992402082,0.3658,87062.0,87040.0,0.0114925]
[1765992402288,0.3608,87053.0,87040.0,0.0114925]
[1765992402679,0.00017231,87055.0,87040.0,0.0114925]
[1765992402680,2.31e-06,87055.0,87049.0,0.3608]
[1765992404792,0.3608,87053.0,87039.0,0.3608]
[1765992404983,0.0114915,87049.0,87038.0,0.00017231]
[1765992405283,0.3608,87043.0,87038.0,2.31e-06]
[1765992406785,0.3608,87043.0,87038.0,0.00100231]
[1765992407887,0.0114927,87039.0,87029.0,0.3608]
[1765992408085,0.3608,87043.0,87020.0,0.22488041]
[1765992408086,0.3608,87034.0,87020.0,0.22488041]
[1765992409191,0.3608,87034.0,87021.0,0.0114951]
[1765992409388,0.3608,87034.0,87020.0,0.22588041]
[1765992409389,0.19413,87034.0,87020.0,0.22588041]
[1765992409598,0.0114915,87049.0,87032.0,0.0114935]
[1765992409790,0.0114921,87044.0,87037.0,0.3608]
[1765992409989,0.0114924,87042.0,87037.0,0.3608]
[1765992410181,0.3722919,87046.0,87037.0,0.3608]
[1765992410384,0.3608,87053.0,87038.0,0.0114928]
[1765992410694,0.00017231,87054.0,87045.0,0.3608]
[1765992412292,0.00017231,87054.0,87045.0,0.3722919]
[1765992412491,0.00017231,87054.0,87052.0,0.3608]
[1765992412793,0.00117231,87054.0,87052.0,0.3608]
[1765992413194,0.00017231,87054.0,87052.0,0.3608]
[1765992413394,0.3608,87095.0,87052.0,0.3608]
[1765992413598,0.22488041,87100.0,87082.0,0.3608]
[1765992413904,0.3608,87086.0,87071.0,0.3608]
[1765992414404,0.011487,87083.0,87071.0,0.3608]
[1765992416395,0.0114873,87081.0,87071.0,0.3608]
[1765992416595,0.3608,87077.0,87070.0,1e-08]
[1765992417298,0.0114885,87072.0,87070.0,1e-08]
[1765992417801,0.011488,87075.0,87070.0,1e-08]
[1765992418606,0.3618,87077.0,87070.0,1e-08]
[1765992418607,0.0114883,87073.0,87070.0,1e-08]
[1765992419701,0.002,87075.0,87070.0,1e-08]
[1765992419896,0.3608,87076.0,87070.0,1e-08]
[1765992420101,0.002,87073.0,87070.0,1e-08]
[1765992420300,0.0114884,87072.0,87070.0,1e-08]
[1765992421097,0.002,87073.0,87045.0,0.3608]
[1765992421301,0.3608,87062.0,87050.0,0.22488041]
[1765992421492,0.0114901,87060.0,87049.0,0.3608]
[1765992421808,0.0114903,87058.0,87049.0,0.3608]
[1765992422006,0.0114906,87056.0,87049.0,0.3608]
[1765992422203,0.00017231,87062.0,87049.0,0.3608]
[1765992422405,0.01166211,87062.0,87049.0,0.3608]
[1765992422604,0.00017231,87062.0,87049.0,0.3608]
[1765992422805,1e-08,87062.0,87061.0,0.0114898]
[1765992423010,0.0114854,87095.0,87062.0,0.0114896]
[1765992423202,0.0114857,87093.0,87075.0,0.0114879]
[1765992423506,0.3608,87094.0,87080.0,0.58568041]
[1765992423698,0.3608,87094.0,87081.0,0.0114872]
[1765992423900,0.3608,87094.0,87080.0,0.3608]
[1765992424098,0.011486,87091.0,87080.0,0.3608]
[1765992424296,0.3608,87094.0,87080.0,0.3608]
[1765992424509,0.3722855,87094.0,87080.0,0.3608]
[1765992424702,0.0114858,87092.0,87080.0,0.3608]
[1765992425408,0.3608,87086.0,87079.0,2.31e-06]
[1765992426104,0.3608,87086.0,87080.0,0.0114873]
[1765992426310,0.00017231,87096.0,87084.0,0.22488041]
[1765992426512,0.00017231,87096.0,87093.0,0.3608]
[1765992427594,0.3608,87107.0,87093.0,0.3608]
[1765992428611,0.00517231,87104.0,87093.0,0.3608]
[1765992429199,0.0114843,87103.0,87093.0,0.3608]
[1765992429709,0.3608,87096.0,87083.0,0.3608]
[1765992430101,0.3608,87087.0,87079.0,2.31e-06]
[1765992431312,0.3608,87096.0,87084.0,0.3608]
[1765992432610,0.3722852,87096.0,87084.0,0.3608]
[1765992432807,0.3608,87107.0,87091.0,0.3608]
[1765992433020,0.36597231,87104.0,87091.0,0.3608]
[1765992433408,0.22488041,87101.0,87091.0,0.19413]
[1765992433608,0.0114856,87094.0,87079.0,2.31e-06]
[1765992433806,0.3608,87086.0,87079.0,2.31e-06]
[1765992435212,0.0114883,87073.0,87056.0,0.0114904]
[1765992435407,0.3608,87071.0,87056.0,0.0114904]
[1765992435803,0.0114868,87085.0,87067.0,0.0114889]
[1765992436009,0.3608,87086.0,87061.0,0.0114897]
[1765992436010,0.0114878,87077.0,87061.0,0.0114897]
[1765992436314,0.0114872,87081.0,87067.0,0.00017231]
[1765992436607,0.00017231,87085.0,87073.0,0.3608]
[1765992436812,0.00017231,87085.0,87075.0,0.0114879]
[1765992437011,0.00017231,87085.0,87073.0,0.3608]
[1765992437602,0.00017231,87085.0,87081.0,0.3608]
[1765992439018,0.00117231,87085.0,87081.0,0.3608]
[1765992439720,0.3608,87083.0,87073.0,0.3608]
[1765992440012,0.3608,87075.0,87067.0,1e-08]
[1765992440214,0.3722889,87068.0,87067.0,1e-08]
[1765992441715,0.0114893,87065.0,87048.0,0.0114915]
[1765992442015,0.3608,87060.0,87044.0,0.3608]
[1765992442209,0.3608,87060.0,87047.0,0.0114916]
[1765992442409,0.3608,87060.0,87046.0,0.0114917]
[1765992443320,0.3608,87060.0,87043.0,0.00017231]
[1765992443321,0.3608,87051.0,87043.0,0.00017231]
[1765992444416,0.3608,87051.0,87048.0,0.001]
[1765992445009,0.3608,87051.0,87043.0,0.00117231]
[1765992445611,1e-08,87061.0,87047.0,0.3608]
[1765992445812,0.0114869,87084.0,87067.0,0.011489]
[1765992446007,0.0114869,87084.0,87076.0,0.3608]
[1765992446618,0.0114868,87085.0,87076.0,0.3608]
[1765992446922,0.3608,87088.0,87076.0,0.3608]
[1765992447322,0.3608,87088.0,87072.0,0.00017231]
[1765992447323,0.3608,87078.0,87072.0,0.00017231]
[1765992447722,0.3608,87078.0,87072.0,0.01166061]
[1765992447916,0.3608,87078.0,87072.0,0.00017231]
[1765992448317,0.3608,87078.0,87072.0,0.00117231]
[1765992449212,0.3608,87078.0,87072.0,1e-08]
[1765992449413,0.3608,87077.0,87072.0,1e-08]
[1765992449715,0.0114881,87075.0,87072.0,1e-08]
[1765992449919,0.0114884,87073.0,87059.0,0.3608]
[1765992450117,0.3608,87077.0,87040.0,0.33499337]
[1765992450118,0.3608,87060.0,87046.0,0.3608]
[1765992450312,0.3608,87060.0,87049.0,0.0114913]
[1765992450709,0.3608,87052.0,87051.0,0.0114911]
[1765992450915,8e-08,87098.0,87059.0,0.3608]
[1765992451114,8e-08,87098.0,87097.0,0.7216]
[1765992451320,0.36080008,87098.0,87085.0,0.3608]
[1765992451517,8e-08,87104.0,87094.0,0.3608]
[1765992451712,0.3608,87109.0,87094.0,0.3608]
[1765992451713,0.25343008,87109.0,87094.0,0.3608]
[1765992451918,0.25343008,87109.0,87094.0,0.3722854]
[1765992452121,0.3608,87098.0,87093.0,1e-08]
[1765992452327,0.0114854,87095.0,87093.0,1e-08]
[1765992452622,0.372285,87098.0,87093.0,1e-08]
[1765992452820,0.0114853,87096.0,87093.0,1e-08]
[1765992453914,0.0124853,87096.0,87093.0,1e-08]